Cogmind - Beta 13 @@@ ROGUE MODE // 2024.03.31 @ 00:02:08 Player: L5 Result: Destroyed by G-34 Mercenary with Small Laser Performance ------------- Evolutions (0) 0 Regions Visited (1) 200 Robots Destroyed (11) 55 Value Destroyed (257) 257 Prototype IDs (0) 0 Alien Tech Used (0) 0 Bonus (0) 0 TOTAL SCORE: 512 Bonus ------- None Cogmind --------- Core Integrity 0/250 Matter 238/300 Energy 100/100 System Corruption 0% Temperature Cool (6) Movement Core (1350) Ox26 Location -10/Materials Parts ------- > --- POWER (1) -------- (None) > --- PROPULSION (2) --- (None) > --- UTILITY (2) ------ Huge Storage Unit > --- WEAPON (2) ------- (None) > --- INVENTORY (25) --- Light Ion Engine Heat Sink Medium Battery (150) ECM Suite ECM Suite Weapon Shielding Peak State ------------ > --- POWER ------------ Ion Engine > --- PROPULSION ------- Wheel Wheel > --- UTILITY ---------- Huge Storage Unit ECM Suite > --- WEAPON ----------- EM Pulse Gun Grenade Launcher > --- INVENTORY -------- Light Ion Engine Heat Sink Light Assault Rifle [Rating: 7] Favorites ----------- Power Ion Engine Engine Ion Engine Propulsion Wheel Wheel Wheel Utility Huge Storage Unit Device ECM Suite Storage Huge Storage Unit Weapon Light Assault Rifle Energy Gun EM Pulse Gun Ballistic Gun Light Assault Rifle Launcher Grenade Launcher Special Weapon Welding Torch Build | -11 -10 ------- Run | Yrd Mat Slots Evolved . | . . Power . | . . Propulsion . | . . Utility . | . . Weapon . | . . Parts Attached 15 | 6 9 Power 2 | 2 . Engine 2 | 2 . Core . | . . Reactor . | . . Propulsion 2 | 2 . Treads . | . . Leg . | . . Wheel 2 | 2 . Hover . | . . Flight . | . . Utility 5 | . 5 Device 4 | . 4 Storage 1 | . 1 Processor . | . . Hackware . | . . Protection . | . . Artifact . | . . Weapon 6 | 2 4 Energy Gun 1 | 1 . Energy Cannon . | . . Ballistic Gun 3 | 1 2 Ballistic Cannon . | . . Launcher 1 | . 1 Special Weapon 1 | . 1 Impact Weapon . | . . Slashing Weapon . | . . Piercing Weapon . | . . Special Melee Weapon . | . . Unidentified Prototypes . | . . Parts Lost 9 | . 9 Power 1 | . 1 Propulsion 2 | . 2 Utility 1 | . 1 Weapon 5 | . 5 Highest Loss Streak 7 | . 7 To Critical Strikes . | . . Average Slot Usage (%) 80 | . 80 Engine 13 | . 13 Wheel 26 | . 26 Device 10 | . 10 Storage 10 | . 10 Energy Gun 3 | . 3 Ballistic Gun 3 | . 3 Launcher 10 | . 10 Naked Turns . | . . Heaviest Build 92 | 8 92 Greatest Support 20 | 20 20 Greatest Overweight (x) 26 | . 26 Average Overweight (x) 1 | . 2 Largest Inventory Capacity 25 | 5 25 Average Capacity 12 | 5 20 Most Carried 9 | 1 9 Average Carried 3 | . 5 Final Capacity 25 | 5 25 Final Carried 6 | 1 6 Class Distribution -------------------- 100% | Mutant Dominant Class ---------------- Mutant | -10/Materials Resources | -11 -10 ----------- Run | Yrd Mat Matter Collected 386 | 265 121 Remotely . | . . Salvage Created 207 | 52 155 Parts 13 | 6 7 Haulers Intercepted . | . . Recyclers Shooed . | . . Parts Field Recycled . | . . Retrieved Matter . | . . Parts Self-Destructed . | . . Prevented . | . . Kills | -11 -10 ------- Run | Yrd Mat Combat Hostiles Destroyed 7 | 1 6 Guns 1 | 1 . AOE 6 | . 6 Classes Destroyed 5 | 2 3 Worker 1 | 1 . Builder 2 | . 2 Watcher 1 | . 1 Swarmer 2 | . 2 Grunt 5 | 1 4 Best Kill Streak 3 | 1 3 Combat Bots Only 2 | 1 2 Max Kills in Single Turn 2 | 1 2 Gunslinging . | . . Exploded 2 | . 2 Melee . | . . Uniques/NPCs Destroyed . | . . Combat | -11 -10 -------- Run | Yrd Mat Hostile Shots Fired 96 | 7 89 Missed 32 | 1 31 Damage Taken 801 | 68 733 Core 259 | 12 247 Absorbed by Shields . | . . Core Remaining (%) 95 | 95 . Volleys Fired 32 | 5 27 Largest 2 | 2 2 Hottest 70 | 60 70 Shots Fired 50 | 10 40 Gun 38 | 10 28 Cannon . | . . Launcher 12 | . 12 Special . | . . Kinetic 23 | 5 18 Thermal . | . . Explosive 12 | . 12 Electromagnetic 15 | 5 10 Robot Hit Streak 6 | 4 6 Robot Miss Streak 3 | 1 3 Penetration Max . | . . Secondary Targets . | . . Shots Hit Robots 27 | 7 20 Core Hits 19 | 4 15 Critical Kills . | . . Critical Parts Destroyed . | . . Critical Strikes 1 | . 1 Corrupt 1 | . 1 Melee Attacks . | . . Impact . | . . Slashing . | . . Piercing . | . . Sneak Attacks . | . . Combat Hostiles . | . . Follow-up Attacks . | . . Damage Inflicted 880 | 68 812 Guns 225 | 68 157 Cannons . | . . Explosions 655 | . 655 Melee . | . . Ramming . | . . Kinetic 143 | 29 114 Thermal 163 | . 163 Explosive 492 | . 492 Electromagnetic 82 | 39 43 Impact . | . . Slashing . | . . Piercing . | . . Highest Corruption . | . . Average Corruption . | . . Corruption Purged . | . . Corruption Blocked . | . . Overload Shots . | . . Overflow Damage 41 | . 41 Projectiles . | . . Explosions 41 | . 41 Melee . | . . Knockbacks . | . . Impact . | . . Kinetic . | . . Secondary . | . . Self-Inflicted Damage 133 | . 133 Shots 5 | . 5 Rammed . | . . Targets Rammed . | . . Kicked . | . . Crushed . | . . Highest Temperature 46 | 46 33 Average Temperature 15 | 20 13 Received Heat Transfer 312 | 36 276 Siege Activations . | . . Robots Corrupted . | . . Combat Hostiles . | . . Parts Fried . | . . Impact Corruptions . | . . Robots Melted . | . . Combat Hostiles . | . . Parts Melted . | . . Heat Transferred 100 | . 100 Parts Sabotaged . | . . Parts Stolen . | . . Parts Stripped . | . . Power Chain Reactions . | . . Alert | -11 -10 ------- Run | Yrd Mat Peak Influence 334 | 25 334 Initial 16 | . 16 Average 94 | 19 166 Maximum Alert Level 1 | . 1 Low Security (%) 85 | 100 70 Level 1 14 | . 29 Level 2 . | . . Level 3 . | . . Level 4 . | . . Level 5 . | . . High Security . | . . Max Security . | . . Squads Dispatched 4 | . 4 Investigation 2 | . 2 Extermination . | . . Reinforcement 2 | . 2 Assault . | . . Garrison . | . . Intercept . | . . Searches Triggered . | . . Construction Impeded . | . . Haulers Reinforced . | . . Active Scanning Responses . | . . Cargo Convoy Interrupts . | . . Stealth | -11 -10 --------- Run | Yrd Mat Distress Signals . | . . Communications Jammed . | . . Distress Signals . | . . Times Spotted 14 | 1 13 Peak Tracking Total 3 | 1 3 Tactical Retreats 1 | . 1 Traps | -11 -10 ------- Run | Yrd Mat Traps Triggered 1 | . 1 Indirectly . | . . Trap Hack Attempts . | . . Triggered . | . . Disarmed . | . . Reprogrammed . | . . Reused . | . . Traps Extracted . | . . Installed . | . . Triggered . | . . Machines | -11 -10 ---------- Run | Yrd Mat Machines Disabled 4 | . 4 Max in Single Turn 2 | . 2 Machines Repaired . | . . Machines Dismantled . | . . Machines Sabotaged . | . . Overloaded Fab Kills . | . . Hacking | -11 -10 --------- Run | Yrd Mat Machines Accessed 2 | . 2 Terminals 2 | . 2 Fabricators . | . . Repair Stations . | . . Recycling Units . | . . Scanalyzers . | . . Garrison Access . | . . Total Hacks 4 | . 4 Successful 3 | . 3 Failed 1 | . 1 Catastrophic 1 | . 1 Database Lockouts . | . . Manual . | . . Terminals 4 | . 4 Fabricators . | . . Repair Stations . | . . Recycling Units . | . . Scanalyzers . | . . Garrison Access . | . . Terminal Hacks 3 | . 3 Record 2 | . 2 Emergency Access Points 1 | . 1 Fabricator Hacks . | . . Repair Station Hacks . | . . Recycling Unit Hacks . | . . Scanalyzer . | . . Garrison Access Hacks . | . . Unauthorized Hacks . | . . Terminals . | . . Fabricators . | . . Repair Stations . | . . Recycling Units . | . . Scanalyzers . | . . Garrison Access . | . . Data Cores Recovered . | . . Used . | . . Hacking Detections 2 | . 2 Full Trace Events 1 | . 1 Feedback Events . | . . Feedback Blocked . | . . Robot Schematics Acquired . | . . Robots Built . | . . Authchips . | . . Time . | . . Total Robot Build Rating . | . . Part Schematics Acquired . | . . Parts Built . | . . Authchips . | . . Time . | . . Total Part Build Rating . | . . Parts Repaired . | . . Time . | . . Parts Recycled . | . . Recycled Matter . | . . Retrieved Matter . | . . Retrieved Components . | . . Parts Scanalyzed . | . . Part Schematics Acquired . | . . Parts Damaged . | . . Bothacking | -11 -10 ------------ Run | Yrd Mat Used RIF Installer . | . . Robots Hacked . | . . Non-combat . | . . Combat . | . . Robot Hacks Applied . | . . Relay Couplers Released . | . . Fabnet Peak Effective % . | . . Robots Rewired . | . . Allies Hacked . | . . Hacks Repelled . | . . Allies | -11 -10 -------- Run | Yrd Mat Total Allies . | . . Largest Group . | . . Highest-Rated Group . | . . Highest-Rated Ally . | . . Total Orders . | . . Ally Attacks . | . . Total Damage . | . . Kills . | . . Allies Corrupted . | . . Allies Melted . | . . Intel | -11 -10 ------- Run | Yrd Mat Robot Analysis Total . | . . Derelict Logs Recovered . | . . Drone Launches . | . . Drone Recoveries . | . . Exploration | -11 -10 ------------- Run | Yrd Mat Turns Passed 798 | 394 404 Spaces Moved 733 | 477 256 Core 39 | 38 1 Treads . | . . Legs . | . . Wheels 694 | 439 255 Hover . | . . Flight . | . . Fastest Speed 50 | 50 80 Average Speed 95 | 77 127 Slowest Speed 1350 | 80 1350 Overloaded Moves . | . . Propulsion Burnouts . | . . Robots Hopped . | . . Cave-ins Triggered . | . . Exploration Rate (%) 19 | 12 27 Regions Visited 1 Branch Regions . Pre-discovered Areas . | . . Known Exits Taken . | . . Unknown Exits Taken 1 | 1 . Scrap Searched . | . . Spaces Dug . | . . Terrain Destroyed 81 | . 81 Melee . | . . Projectile . | . . AOE 81 | . 81 Terrain Rammed . | . . Walls Destroyed . | . . Machines Disabled . | . . Actions | -11 -10 --------- Run | Yrd Mat Total 790 | 488 302 Wait 2 | 1 1 Move 732 | 476 256 Hop . | . . Pick Up 6 | . 6 Fast Attach 9 | 5 4 Attach 4 | . 4 Detach 3 | . 3 Swap 2 | 1 1 Drop . | . . Fire 32 | 5 27 Melee . | . . Ram . | . . Kick . | . . Crush . | . . Escape Stasis . | . . Rewire . | . . Trap . | . . Miscellaneous . | . . Route ------- -11/Scrapyard -10/Materials (discovered 1 exit: [*Mat]) History --------- Turn | Location | Event 2 | -11/Scrapyard | Met Revision 17 75 | -11/Scrapyard | Discovered new exit (range 8) 395 | -11/Scrapyard | Entered Materials 396 | -10/Materials | Build established: Mutant 690 | -10/Materials | Discovered new exit (range 16) 721 | -10/Materials | Core integrity fell below 50% 779 | -10/Materials | Core integrity fell below 20% 799 | -10/Materials | Destroyed by G-34 Mercenary with Small Laser Last Messages --------------- Ion Engine destroyed. K-01 Serf collects debris. U-05 Engineer lays Concrete. K-01 Serf collects debris. U-05 Engineer lays Concrete. U-05 Engineer builds a Wall. Wheel destroyed. Terrain Scanner destroyed. G-34 Mercenary destroyed. U-05 Engineer builds a Door. Lgt. Assault Rifle destroyed. U-05 Engineer builds a Wall. Lgt. Assault Rifle destroyed. K-01 Serf collects debris. U-05 Engineer lays Concrete. K-01 Serf collects debris. U-05 Engineer lays Concrete. R-06 Scavenger collects Sml. Laser. Welding Torch destroyed. [Achievement: First Step to Greatness] Map ----- +----------------------------------------------------+ | ????????????????????????????????????????? | | ????????????????????????????????????????? | | ????????????????????????????????????????? | | ????????????????????????????????????????? | | ????????????????????????????????????????? | | ????????????????????????????????????????? | | ???????????????????????????####?????????? | | ??????????????????????????# ????????? | | ?????????????????????????? < ????????? | | ??????????????????????????# ????????? | | ?????????????????????##?#?# ????????? | | ??????????????????????????# ?????????? | | ??????????????????? ?????## ?? ??????? | | ??????????????????????????# #?????????? | | ???????????????? ?????????# #????#????? | | ??????????????????????????# #????#????? | | ????????????????? ????????#r #??????#??? | | ?????????????????????????## ##????????? | | ?????????????????????????# #????????? | | ????????############???#?# #####????? | | ????????# T #?????## # [[#????? | | ????????# ####### [[#????? | | ????????# # //#????? | | ????????# r rgr //#????# | | ????????# """ """ # g% ==#????? | | ????????# """ """ # ;;@ ==;##??? | | ????????# """ """ # ;; #+# ;;;##???? | | ??# ????? # ; " #????? | | ??# ????######+######;; " #????? | | ??# ?????????# #????# ; " #????? | | ??# ????????# ##?#?# ; k" #????? | | ?## ######??# #????##; ; #????? | | ## #### ##????#; ###????? | | #????#; #??#???? | | ####### #??????? | | # # #+#########??????? | | ## =! #?????????????? | | ?###+#### = ""#?????????????? | | ????????# " "#?????????????? | | ????????# + "" #?????????????? | | ???????## # #?????????????? | | ???????# ! """#?????????????? | | ???????## # """#?????????????? | | ???????## # """#?????????????? | | ?# ## / #?????????????? | | ?# + ## ########?????????????? | | ?# ## ##############??????????????? | | ?# ! # # ?# #??????????????? | | ?# # ##?# """ #??????????????? | | ?# ?# #??# "Y" #??????????????? | +----------------------------------------------------+ Best States ------------- Heat Dissipation 35 Energy Generation 10 Energy Capacity 250 Matter Stores 300 Matter Capacity 300 Sight Range 16 Terrain Scan Range 14 Terrain Scan Density 10 ECM Strength 1 Evasion (%) 50 Item Schematics ----------------- None Robot Schematics ------------------ None Fabricated ------------ Nothing Alien Tech Used ----------------- None Achievements -------------- First Step to Greatness One Hack Too Far Uninvited Guest Challenges ------------ None Game ------ Seed HardenedTargetScreen Manual? 0 Play Time 00:40:07 Cumulative 0.6 hours Start 2024.03.30 @ 22:55:27 End 2024.03.31 @ 00:02:08 Sessions 2 Manual Loads 0 Difficulty Rogue Special Mode None Game No. 1 Rogue 1 Adventurer 0 Explorer 0 Win Type - Total 0 Types 0/0/0/0/0/0/0/0/0 Lore% 0 Gallery% 1 Achievement% 1 Wizard Run 0 Options --------- Layout 0 ASCII 0 Keyboard 0 Movement Arrows Keybinds 0 Fullscreen 1 Font 18/SmallcapsGlow Map View 76x50 Zoom Use 0% Tactical HUD 0 Map Filters NONE Filters NONE Steam 1 RUN: b99ee942-cae4-4ffd-abdd-4011cfe6f6eb